{"text_format":"3","workbook":"xlsx","n_sheets":4,"sheets":["الأحداث الرئيسية","مخطط","حول","بيانات المخطط"],"not_rendered":{"charts":1,"defined_names":2},"read":"whole","date_system":"1900"}

{"sheet":"الأحداث الرئيسية","index":0,"n_rows":27,"n_cols":5,"rows_kept":27}
["قم بإنشاء \"مخطط\" عن طريق إدخال المراحل الرئيسية والأنشطة في ورقة العمل هذه.\nيوجد عنوان ورقة العمل هذه في الخلية C1. \nالمعلومات حول كيفية استخدام ورقة العمل هذه، بما في ذلك إرشادات برامج قراءة الشاشة، متوفرة في \"حول\" ورقة العمل.\nتابع التنقل لأسفل العمود A للحصول على إرشادات إضافية.",null,"الأحداث الرئيسية"]
["عناوين الأعمدة موجودة في الخلايا من C2 إلى E2. استخدم خيارات \"فرز وتصفية\" لفرز إدخالات معينة أو البحث عنها.\nأدخل الأحداث الرئيسية مع التواريخ وقم بتعيين موضع لتخطيط الحدث الرئيسي في الجدول بدءاً من الخلية C3.\nتم إخفاء العمود B. المخطط الذي تم إنشاؤه من هذه البيانات يقوم باستخدام شريط تمرير لعرض مجموعات من المخطط الزمني. يساعد العمود B على تحديد أي الأحداث الرئيسية التي يجب تخطيطها عندما يتم زيادة شريط التمرير. \nتحذير: قد يتسبب حذف محتويات العمود B أو تعديلها في تعطيل تكامل التخطيط المضمن في هذا المصنف.","الرقم","الموضع","التاريخ","الحدث الرئيسي"]
["أدخل \"الموضع\" لتخطيط التاريخ والحدث الرئيسي في الخلية C1. أدخل رقماً موجباً من 1 إلى 3 لتخطيط الحدث الرئيسي أعلى المخطط الزمني. أدخل رقماً سالباً من 1 إلى 3 لتخطيط الحدث الرئيسي أسفل المخطط الزمني.\nأدخل التاريخ والحدث الرئيسي أو النشاط في الأعمدة D وE داخل الجدول.\nكرر هذا النمط لكل صف جديد في الجدول الموجود على اليسار.\nيتم توفير نماذج البيانات في الصفوف من 3 إلى 26. قم بتعديل محتوى النموذج أو حذفه لإنشاء المخطط الخاص بك.\nانتقل إلى الخلية A27 للحصول على الإرشاد التالي.",{"$f":"ROW($A1)","v":1},1,{"$f":"TODAY()","v":"2018-08-07"},"بدء"]
[null,{"$f":"ROW($A2)","v":2},-2,{"$f":"D3+10","v":"2018-08-17"},"تحليل المشاكل\nنشاط 1"]
[null,3,1,{"$f":"D4+20","v":"2018-09-06"},"تطوير حالة العمل\nنشاط 1\nنشاط 2"]
[null,4,-1,{"$f":"D5+30","v":"2018-10-06"},"مراجعة العرض التقديمي"]
[null,5,{"v":-0.5,"d":"-1"},{"$f":"D6+40","v":"2018-11-15"},"بدء التنفيذ\nنشاط 1\nنشاط 2"]
[null,6,2,{"$f":"D7+50","v":"2019-01-04"},"المحاذاة التنفيذية\nنشاط 1\nنشاط 2\nنشاط 3"]
[null,7,{"v":0.5,"d":"1"},{"$f":"D8+60","v":"2019-03-05"},"شراء المساهمين في"]
[null,8,-1,{"$f":"D9+70","v":"2019-05-14"},"تحديد الموارد"]
[null,9,{"v":0.5,"d":"1"},{"$f":"D10+80","v":"2019-08-02"},"إنشاء الفريق\nنشاط 1 "]
[null,10,-2,{"$f":"D11+90","v":"2019-10-31"},"بدء الفريق\nنشاط 1 \nنشاط 2\nنشاط 3\nنشاط 4"]
[null,11,3,{"$f":"D12+100","v":"2020-02-08"},"بدء تجميع البيانات"]
[null,12,-1,{"$f":"D13+90","v":"2020-05-08"},"تحليل البيانات"]
[null,13,1,{"$f":"D14+80","v":"2020-07-27"},"تصميم"]
[null,14,1,{"$f":"D15+70","v":"2020-10-05"},"إثبات المبدأ"]
[null,15,-3,{"$f":"D16+60","v":"2020-12-04"},"الاختبار والتحليل"]
[null,16,-2,{"$f":"D17+50","v":"2021-01-23"},"إعادة تصميم"]
[null,17,2,{"$f":"D18+40","v":"2021-03-04"},"إعادة تطوير"]
[null,18,-1,{"$f":"D19+30","v":"2021-04-03"},"الاختبار والتحليل"]
[null,19,1,{"$f":"D20+20","v":"2021-04-23"},"إعادة تصميم"]
[null,20,-3,{"$f":"D21+10","v":"2021-05-03"},"إعادة تطوير"]
[null,21,2,{"$f":"D22+20","v":"2021-05-23"},"الاختبار النهائي"]
[null,22,1,{"$f":"D23+30","v":"2021-06-22"},"اختبار بيتا"]
[null,23,-3,{"$f":"D24+40","v":"2021-08-01"},"مراجعة"]
[null,24,-2,{"$f":"D25+50","v":"2021-09-20"},"إصدار للتسويق"]
["لإضافة صفوف إضافية إلى جدول \"RoadmapMilestones\"، ما عليك سوى إدراج صف جديد فوق هذا الصف.\nلا يوجد المزيد من الإرشادات في ورقة العمل هذه.",null,"لإضافة المزيد من الأحداث الرئيسية، قم بإدراج صفوف جديدة أعلى هذا السطر."]

{"sheet":"مخطط","index":1,"n_rows":3,"n_cols":4,"rows_kept":3}
["يوجد مخطط يعرض الأحداث الرئيسية من ورقة عمل \"الأحداث الرئيسية\" في ورقة العمل هذه. \nتتم الإشارة إلى السنوات في الخلايا B2 وC2 وD2 ويتم تطبيق نمط العنوان Heading 3 عليها.\nيتم تخطيط 10 أحداث رئيسية في كل مرة. \nاستخدم شريط التمرير في الخلايا من B4 إلى D4 للتنقل عبر المخطط.\nتوجد سنوات المخطط الزمني في الخلايا من B3 حتى D3.\nلا يوجد المزيد من الإرشادات في ورقة العمل هذه."]
[]
[null,{"$f":"'بيانات المخطط'!B20","v":2018},{"$f":"'بيانات المخطط'!B21","v":2019},{"$f":"'بيانات المخطط'!B22","v":2019}]

{"sheet":"حول","index":2,"n_rows":5,"n_cols":1,"rows_kept":5}
["حول هذا المصنف"]
["إرشادات لمستخدمي برامج قراءة الشاشة"]
["توجد 4 أوراق عمل في هذا المصنف. \n\nالأحداث الرئيسية\nمخطط\nحول\nبيانات المخطط (مخفية)\n\nتوجد الإرشادات لكل ورقة عمل في العمود A بداية من الخلية A1 في كل ورقة عمل. وهي موجودة كنص مكتوب ومخفي. ترشدك كل خطوة عبر المعلومات في هذا الصف. وتستمر الخطوات التالية في الخلية A2 وA3 إلى آخره، ما لم يذكر غير ذلك بوضوح. على سبيل المثال، قد يذكر نص الإرشادات ما يلي: \"استمر حتى الخلية A6\" من أجل الخطوة التالية. \n\nلن تتم طباعة النص المخفي.\n\nلإزالة هذه الإرشادات من أي ورقة عمل، ببساطة قم بحذف العمود A.\n"]
["تستخدم خارطة الطريق هذه المواضع لتخطيط الأحداث الرئيسية والأنشطة. يمكن استخدام المواضع لزيادة قيمة حدث رئيسي أو نشاط. ببساطة قم بتعديل القيم حسب تفضيلات حساب القيمة الخاصة بك. على سبيل المثال، قد يكون الحدث الرئيسي/النشاط 3 ذا قيمة أكبر من الحدث الرئيسي/النشاط 2. لتوضيح ذلك في المخطط، ببساطة اجعل قيمة الموضع للحدث الرئيسي/النشاط 3 أعلى من الحدث الرئيسي/النشاط 2.  \n"]
["هذا هو الإرشاد الأخير في ورقة العمل هذه."]

{"sheet":"بيانات المخطط","index":3,"n_rows":26,"n_cols":4,"rows_kept":26,"hidden":true}
["توجد بيانات حول إنشاء التخطيط الديناميكي في ورقة العمل هذه. لا تحذف ورقة العمل هذه!\nقد يؤدي حذف ورقة العمل هذه إلى الإضرار بالقدرة الديناميكية للمصنف.","لا تحذف ورقة العمل هذه!"]
["عنوان الجدول في الخلية B2.","محتوى \"مخطط ديناميكي\""]
["عناوين الأعمدة موجودة في الخلايا من B3 إلى D3. \nيتم تحديث هذا الجدول تلقائياً استناداً إلى المحتوى الذي تم إدخاله في ورقة عمل \"الأحداث الرئيسية\".\nتحذير: قد يؤدي تعديل المحتوى الموجود في هذا الجدول أو حذفه إلى الإخلال بإمكانية التحديث الديناميكي في \"مخطط\" في ورقة عمل \"مخطط\".\nانتقل إلى الخلية A15 للحصول على الإرشاد التالي.","التاريخ","الأحداث","الموضع"]
[null,{"$f":"IFERROR(IF(LEN('الأحداث الرئيسية'!D3)=0,\"\",INDEX(RoadmapMilestones[],'الأحداث الرئيسية'!$B3+$B$17,3)),\"\")","v":"2018-08-07"},{"$f":"IFERROR(IF(LEN('الأحداث الرئيسية'!E3)=0,\"\",INDEX(RoadmapMilestones[],'الأحداث الرئيسية'!$B3+$B$17,4)),\"\")","v":"بدء"},{"$f":"IFERROR(INDEX(RoadmapMilestones[],'الأحداث الرئيسية'!$B3+$B$17,2),\"\")","v":1}]
[null,{"$f":"IFERROR(IF(LEN('الأحداث الرئيسية'!D4)=0,\"\",INDEX(RoadmapMilestones[],'الأحداث الرئيسية'!$B4+$B$17,3)),\"\")","v":"2018-08-17"},{"$f":"IFERROR(IF(LEN('الأحداث الرئيسية'!E4)=0,\"\",INDEX(RoadmapMilestones[],'الأحداث الرئيسية'!$B4+$B$17,4)),\"\")","v":"تحليل المشاكل\nنشاط 1"},{"$f":"IFERROR(INDEX(RoadmapMilestones[],'الأحداث الرئيسية'!$B4+$B$17,2),\"\")","v":-2}]
[null,{"$f":"IFERROR(IF(LEN('الأحداث الرئيسية'!D5)=0,\"\",INDEX(RoadmapMilestones[],'الأحداث الرئيسية'!$B5+$B$17,3)),\"\")","v":"2018-09-06"},{"$f":"IFERROR(IF(LEN('الأحداث الرئيسية'!E5)=0,\"\",INDEX(RoadmapMilestones[],'الأحداث الرئيسية'!$B5+$B$17,4)),\"\")","v":"تطوير حالة العمل\nنشاط 1\nنشاط 2"},{"$f":"IFERROR(INDEX(RoadmapMilestones[],'الأحداث الرئيسية'!$B5+$B$17,2),\"\")","v":1}]
[null,{"$f":"IFERROR(IF(LEN('الأحداث الرئيسية'!D6)=0,\"\",INDEX(RoadmapMilestones[],'الأحداث الرئيسية'!$B6+$B$17,3)),\"\")","v":"2018-10-06"},{"$f":"IFERROR(IF(LEN('الأحداث الرئيسية'!E6)=0,\"\",INDEX(RoadmapMilestones[],'الأحداث الرئيسية'!$B6+$B$17,4)),\"\")","v":"مراجعة العرض التقديمي"},{"$f":"IFERROR(INDEX(RoadmapMilestones[],'الأحداث الرئيسية'!$B6+$B$17,2),\"\")","v":-1}]
[null,{"$f":"IFERROR(IF(LEN('الأحداث الرئيسية'!D7)=0,\"\",INDEX(RoadmapMilestones[],'الأحداث الرئيسية'!$B7+$B$17,3)),\"\")","v":"2018-11-15"},{"$f":"IFERROR(IF(LEN('الأحداث الرئيسية'!E7)=0,\"\",INDEX(RoadmapMilestones[],'الأحداث الرئيسية'!$B7+$B$17,4)),\"\")","v":"بدء التنفيذ\nنشاط 1\nنشاط 2"},{"$f":"IFERROR(INDEX(RoadmapMilestones[],'الأحداث الرئيسية'!$B7+$B$17,2),\"\")","v":-0.5}]
[null,{"$f":"IFERROR(IF(LEN('الأحداث الرئيسية'!D8)=0,\"\",INDEX(RoadmapMilestones[],'الأحداث الرئيسية'!$B8+$B$17,3)),\"\")","v":"2019-01-04"},{"$f":"IFERROR(IF(LEN('الأحداث الرئيسية'!E8)=0,\"\",INDEX(RoadmapMilestones[],'الأحداث الرئيسية'!$B8+$B$17,4)),\"\")","v":"المحاذاة التنفيذية\nنشاط 1\nنشاط 2\nنشاط 3"},{"$f":"IFERROR(INDEX(RoadmapMilestones[],'الأحداث الرئيسية'!$B8+$B$17,2),\"\")","v":2}]
[null,{"$f":"IFERROR(IF(LEN('الأحداث الرئيسية'!D9)=0,\"\",INDEX(RoadmapMilestones[],'الأحداث الرئيسية'!$B9+$B$17,3)),\"\")","v":"2019-03-05"},{"$f":"IFERROR(IF(LEN('الأحداث الرئيسية'!E9)=0,\"\",INDEX(RoadmapMilestones[],'الأحداث الرئيسية'!$B9+$B$17,4)),\"\")","v":"شراء المساهمين في"},{"$f":"IFERROR(INDEX(RoadmapMilestones[],'الأحداث الرئيسية'!$B9+$B$17,2),\"\")","v":0.5}]
[null,{"$f":"IFERROR(IF(LEN('الأحداث الرئيسية'!D10)=0,\"\",INDEX(RoadmapMilestones[],'الأحداث الرئيسية'!$B10+$B$17,3)),\"\")","v":"2019-05-14"},{"$f":"IFERROR(IF(LEN('الأحداث الرئيسية'!E10)=0,\"\",INDEX(RoadmapMilestones[],'الأحداث الرئيسية'!$B10+$B$17,4)),\"\")","v":"تحديد الموارد"},{"$f":"IFERROR(INDEX(RoadmapMilestones[],'الأحداث الرئيسية'!$B10+$B$17,2),\"\")","v":-1}]
[null,{"$f":"IFERROR(IF(LEN('الأحداث الرئيسية'!D11)=0,\"\",INDEX(RoadmapMilestones[],'الأحداث الرئيسية'!$B11+$B$17,3)),\"\")","v":"2019-08-02"},{"$f":"IFERROR(IF(LEN('الأحداث الرئيسية'!E11)=0,\"\",INDEX(RoadmapMilestones[],'الأحداث الرئيسية'!$B11+$B$17,4)),\"\")","v":"إنشاء الفريق\nنشاط 1 "},{"$f":"IFERROR(INDEX(RoadmapMilestones[],'الأحداث الرئيسية'!$B11+$B$17,2),\"\")","v":0.5}]
[null,{"$f":"IFERROR(IF(LEN('الأحداث الرئيسية'!D12)=0,\"\",INDEX(RoadmapMilestones[],'الأحداث الرئيسية'!$B12+$B$17,3)),\"\")","v":"2019-10-31"},{"$f":"IFERROR(IF(LEN('الأحداث الرئيسية'!E12)=0,\"\",INDEX(RoadmapMilestones[],'الأحداث الرئيسية'!$B12+$B$17,4)),\"\")","v":"بدء الفريق\nنشاط 1 \nنشاط 2\nنشاط 3\nنشاط 4"},{"$f":"IFERROR(INDEX(RoadmapMilestones[],'الأحداث الرئيسية'!$B12+$B$17,2),\"\")","v":-2}]
[]
["تتم القدرة على التمرير عبر مخطط باستخدام قيمة تزايدية. يوجد عنوان هذه الإمكانية في الخلية B15.\nيوجد جدول برأس وقيمة واحدة في الخلايا B16 وB17.\nانتقل إلى الخلية A19 للحصول على الإرشاد التالي.","إمكانية التمرير"]
[null,"زيادة الصف"]
[null,0]
[]
["يرسم \"مخطط\" تخطيط السنوات للمخطط الزمني. للقيام بذلك، يجب أن يتم التقاط السنوات من \"قائمة الحدث الرئيسي\". \nعنوان هذا المقطع هو \"السنة\" في الخلية B19. \nيتم إنشاء قيم السنة تلقائياً في الخلايا من C20 إلى C22.\nتحذير: يمكن أن يؤدي حذف هذه السنوات أو تعديلها إلى تغيير دقة التخطيط في \"مخطط\".\nانتقل إلى الخلية A24 للحصول على الإرشاد التالي.","السنة"]
[null,{"$f":"IFERROR(YEAR(B4),\"\")","v":2018},"<-- السنة لموضع بداية مخطط"]
[null,{"$f":"IFERROR(IF(YEAR($B$9)=$B$20,\"\",YEAR($B$9)),\"\")","v":2019},"<-- السنة للفترة المتوسطة من مخطط، ملاحظة، قد يكون هذا فارغاً إذا كان في نفس العام كموضع بداية لخارطة الطريق"]
[null,{"$f":"IFERROR(IF(YEAR($B$13)=$B$20,\"\",YEAR($B$13)),\"\")","v":2019},"<-- السنة للموضع الأخير من مخطط، ملاحظة، قد يكون هذا فارغاً إذا كان في نفس السنة كموضع بداية لخارطة الطريق"]
[]
["تحتوي علامات الدائرة المجوفة في \"مخطط\" على تواريخ من محتوى مخطط الديناميكي في ورقة العمل هذه. التواريخ عبارة عن التاريخ \"الأول\" في الخلية C24 والتاريخ \"الأوسط\" في الخلية C25 وآخر \"تاريخ\" في الخلية C26.\nلا يوجد المزيد من الإرشادات في ورقة العمل هذه.","التاريخ الأول",{"$f":"B4","v":"2018-08-07"}]
[null,"التاريخ الأوسط",{"$f":"B9","v":"2019-01-04"}]
[null,"التاريخ الأخير",{"$f":"B13","v":"2019-10-31"}]